fUSD/lending_fUSD_20240916
["ID","MTS","AMOUNT","RATE_DAILY","PERIOD"]
[338341003,1726520969421,-150.0,0.00012731,2]
[338341004,1726520969456,-150.0,0.00012734,2]
[338341005,1726520969672,-150.0,0.00012734,2]
[338341006,1726520969701,-150.0,0.00012736,2]
[338341007,1726520969728,-150.0,0.00012746,2]
[338341008,1726520969754,-150.0,0.00012746,2]
[338341009,1726520969781,-150.0,0.00012748,2]
[338341010,1726520969808,-150.0,0.0001275,2]
[338341011,1726520969833,-790.19,0.0001275,2]
[338341012,1726520969860,-499.99,0.0001275,2]
[338341013,1726520969887,-4.82840491,0.00012751,2]
[338341014,1726520969920,-145.17159509,0.00012751,2]
[338341015,1726520969946,-95.23455293,0.00012753,2]
[338341016,1726521029502,389.35,9.93e-05,2]
[338341017,1726521029547,389.35,0.00012194,2]
[338341018,1726521030665,250.0,0.00011848,2]
[338341021,1726521031640,-214.1688,0.000127,2]
[338341022,1726521031649,-373.84278738,0.000127,2]
[338341023,1726521031697,-299.00615911,0.000127,2]
[338341024,1726521031708,-330.53995351,0.000127,2]
[338341025,1726521031717,-54.76544707,0.00012753,2]
[338341026,1726521031726,-150.0,0.00012754,2]
[338341027,1726521031735,-769.69459922,0.00012754,2]
[338341028,1726521031755,-16.02540078,0.00012754,2]
[338341029,1726521031765,-150.0,0.00012758,2]
[338341030,1726521031774,-150.0,0.0001276,2]
[338341031,1726521031783,-150.0,0.00012762,2]
[338341032,1726521031792,-300.0,0.00012762,2]
[338341033,1726521031801,-150.0,0.00012763,2]
[338341034,1726521031809,-150.0,0.00012763,2]
[338341035,1726521031818,-94.11023922,0.00012767,2]
[338341036,1726521031836,-55.88976078,0.00012767,2]
[338341037,1726521031845,-150.0,0.00012773,2]
[338341038,1726521031854,-123.2528425,0.00012782,2]
[338341039,1726521031866,-26.7471575,0.00012782,2]
[338341040,1726521031875,-273.2528425,0.00012782,2]
[338341041,1726521031885,-1001.07908928,0.00012782,2]
[338341042,1726521031900,-839.21568449,0.00012782,2]
[338341043,1726521031910,-599.63924013,0.00012782,2]
[338341044,1726521031921,-2470.53107047,0.00012782,2]
[338341045,1726521031932,-8668.78207313,0.00012782,2]
[338341046,1726521031941,-150.0,0.00012789,2]
[338341047,1726521031950,-150.0,0.00012795,2]
[338341048,1726521031959,-150.0,0.000128,2]
[338341049,1726521031968,-1263.1381,0.000128,2]
[338341050,1726521031977,-1231.9446,0.000128,2]
[338341051,1726521031986,-1930.1682,0.000128,2]
[338341053,1726521031996,-159345.238,0.000128,2]
[338341055,1726521032005,-1000.0,0.000128,2]
[338341057,1726521032013,-20675.2595,0.000128,2]
[338341058,1726521032022,-2077.7187,0.000128,2]
[338341060,1726521032031,-2200.0,0.000128,4]
[338341061,1726521032039,-225.6204727,0.000128,2]
[338341062,1726521032048,-150.0,0.00012801,2]
[338341063,1726521032057,-158.14098539,0.00012805,2]
[338341064,1726521032066,-252.28924269,0.00012808,2]
[338341065,1726521032074,-150.0,0.00012814,2]
[338341066,1726521032083,-150.0,0.0001283,2]
[338341067,1726521032092,-150.0,0.00012844,2]
[338341068,1726521032101,-150.0,0.00012857,2]
[338341069,1726521032110,-150.0,0.00012857,2]
[338341070,1726521032118,-150.0,0.00012864,2]
[338341071,1726521032127,-150.0,0.00012869,2]
[338341072,1726521032135,-606.68907,0.0001287,2]
[338341073,1726521032144,-504.81878064,0.00012873,2]
[338341074,1726521032153,-300.0,0.00012881,2]
[338341075,1726521032162,-150.0,0.00012884,2]
[338341076,1726521032171,-150.0,0.00012888,2]
[338341077,1726521032180,-156.13,0.0001289,2]
[338341078,1726521032189,-150.0,0.00012894,2]
[338341079,1726521032198,-150.0,0.00012895,2]
[338341080,1726521032207,-150.0,0.00012896,2]
[338341081,1726521032216,-150.0,0.00012896,2]
[338341082,1726521032224,-500.0,0.00012899,2]
[338341083,1726521032233,-407.79061455,0.00012899,2]
[338341084,1726521032242,-500.0,0.00012899,2]
[338341085,1726521032252,-545.0,0.000129,2]
[338341086,1726521032261,-500.0,0.000129,2]
[338341087,1726521032269,-678.55864945,0.000129,2]
[338341088,1726521032281,-466.22875055,0.000129,2]
[338341089,1726521032289,-1000.0,0.000129,2]
[338341090,1726521032298,-1702.28154398,0.000129,2]
[338341091,1726521034428,150.0,0.00012039,2]
[338341096,1726521037797,-3524.79836481,0.000129,2]
[338341097,1726521037807,-254.94212349,0.000129,2]
[338341098,1726521037854,-659.32047812,0.000129,2]
[338341099,1726521037865,-822.49017547,0.000129,2]
[338341100,1726521037877,-2894.75,0.000129,2]
[338341101,1726521037887,-2383.13931413,0.000129,2]
[338341102,1726521037906,-2180.06068589,0.000129,2]
[338341103,1726521037919,-282.04696975,0.000129,2]
[338341104,1726521037931,-566.76354058,0.000129,2]
[338341105,1726521037942,-2355.0,0.000129,2]
[338341106,1726521037953,-2389.08260378,0.000129,2]
[338341107,1726521037962,-3954.7208784,0.000129,2]
[338341108,1726521037973,-1357.22542988,0.000129,2]
[338341109,1726521037984,-2084.0327375,0.000129,2]
[338341110,1726521037995,-2158.98320904,0.000129,2]
[338341111,1726521038008,-2166.78342138,0.000129,2]
[338341112,1726521038019,-1532.4846,0.000129,2]
[338341113,1726521038079,-285.49172499,0.000129,2]
[338341114,1726521038090,-703.01355159,0.000129,2]
[338341115,1726521038101,-29517.04542,0.000129,2]
[338341116,1726521038135,-2177.28935891,0.000129,2]
[338341121,1726521039736,-3747.06916563,0.000129,2]
[338341122,1726521039763,-630.25841339,0.000129,2]
[338341123,1726521039774,-2537.03952318,0.000129,2]
[338341124,1726521039785,-414.4410234,0.000129,2]
[338341125,1726521039797,-984.9210532,0.000129,2]
[338341126,1726521039861,-662.70634916,0.000129,2]
[338341127,1726521039872,-2511.31265484,0.000129,2]
[338341128,1726521039883,-1125.3623689,0.000129,2]
[338341129,1726521039894,-1822.43594652,0.000129,2]
[338341130,1726521039905,-15621.63964371,0.000129,2]
[338341131,1726521039915,-798.47801632,0.000129,2]
[338341132,1726521039926,-1561.6,0.000129,2]
[338341133,1726521039937,-939.63137312,0.000129,2]
[338341134,1726521039970,-20706.03413694,0.000129,2]
[338341135,1726521039979,-416.9215,0.000129,2]
[338341136,1726521039988,-102960.39738558,0.000129,2]
[338341137,1726521039999,-2476.73398211,0.000129,2]
[338341138,1726521040011,-515.19692979,0.000129,2]
[338341139,1726521040021,-4379.11477664,0.000129,2]
[338341140,1726521040032,-807.664508,0.000129,2]
[338341141,1726521040042,-3408.16965506,0.000129,2]
[338341142,1726521040053,-1345.2272652,0.000129,2]
[338341143,1726521040067,-902.16144431,0.000129,2]
[338341144,1726521040077,-8646.86063141,0.000129,2]
[338341145,1726521040088,-505.53116172,0.000129,2]
[338341146,1726521040099,-470.89476816,0.000129,2]
[338341147,1726521040110,-485.3980518,0.000129,2]
[338341148,1726521040120,-2141.25728077,0.000129,2]
[338341149,1726521040131,-2242.35735466,0.000129,2]
[338341150,1726521040142,-2954.1894928,0.000129,2]
[338341169,1726521043463,-5436.26115702,0.000129,2]
[338341170,1726521043475,-2545.74394811,0.000129,2]
[338341171,1726521043486,-1107.61164532,0.000129,2]
[338341172,1726521043499,-1740.63,0.000129,2]
[338341173,1726521043645,-8674.95,0.000129,2]
[338341174,1726521045724,-335.451,0.000127,2]
[338341175,1726521045782,-8227.14879474,0.000127,2]
[338341176,1726521045792,-293.08820526,0.000127,2]
[338341177,1726521045801,-1077.79237167,0.000129,2]
[338341178,1726521045839,-5923.552,0.000129,2]
[338341179,1726521045896,-904.23596,0.000129,2]
[338341180,1726521045907,-21409.75084274,0.000129,2]
[338341181,1726521045918,-859.59283247,0.000129,2]
[338341182,1726521045953,-2629.70335,0.000129,2]
[338341183,1726521045964,-287.88767852,0.000129,2]
[338341184,1726521046014,-349.99877428,0.000129,2]
[338341185,1726521046024,-486.59959472,0.000129,2]
[338341186,1726521046035,-2695.8483424,0.000129,2]
[338341187,1726521046045,-49481.64873752,0.000129,2]
[338341190,1726521119958,250.0,0.00012021,2]
[338341191,1726521150542,3390.0703,0.000126,2]
[338341192,1726521156819,155.35,0.00010959,2]
[338341193,1726521173023,217.06,0.00011968,2]
[338341194,1726521190747,223.46,0.00011991,2]
[338341195,1726521208551,500.0,0.00026,120]
[338341196,1726521214397,170.92,9.575e-05,2]
[338341197,1726521262703,150.0,0.00025999,60]
[338341198,1726521317870,443.18,0.00011969,2]
[338341199,1726521358820,186.22,0.00012021,2]
[338341200,1726521426424,1501.56,0.00011932,2]
[338341201,1726521441672,151.55,0.00011932,2]
[338341202,1726521471742,204.75982028,0.00012599,2]
[338341203,1726521489407,250.0,0.00011932,2]
[338341204,1726521525757,380.72,0.00010014,2]
[338341205,1726521525956,380.72,0.00012278,2]
[338341206,1726521530143,200.0,0.00011932,2]
[338341207,1726521657657,14396.25,0.00011925,2]
[338341209,1726521665800,250.0,0.00011925,2]
[338341210,1726521678400,155.35,0.00010959,2]
[338341211,1726521684357,1900.0,8.972e-05,2]
[338341212,1726521684520,1000.0,0.00010068,2]
[338341213,1726521685301,500.0,8.972e-05,2]
[338341214,1726521685934,1900.0,0.00010342,2]
[338341215,1726521686085,1000.0,0.00011438,2]
[338341216,1726521686917,500.0,0.00011712,2]
[338341217,1726521687672,1900.0,0.00011712,2]
[338341218,1726521712480,500.0,8.972e-05,2]
[338341219,1726521714049,500.0,0.00011712,2]
[338341220,1726521714077,224.21,0.00011921,2]
[338341221,1726521731930,250.0,0.00011921,2]
[338341223,1726521808929,500.0,0.00025266,120]
[338341224,1726521820463,500.0,8.972e-05,2]
[338341225,1726521822032,500.0,0.00011712,2]
[338341226,1726521823976,200.0,0.00011921,2]
[338341227,1726521824119,500.0,0.00011921,2]
[338341228,1726521824452,500.0,0.00011921,2]
[338341229,1726521824766,500.0,0.00011921,2]
[338341230,1726521824888,200.0,0.00011921,2]
[338341231,1726521825080,500.0,0.00011921,2]
[338341232,1726521825221,200.0,0.00011921,2]
[338341233,1726521825402,500.0,0.00011921,2]
[338341234,1726521825535,200.0,0.00011921,2]
[338341235,1726521825751,500.0,0.00011921,2]
[338341236,1726521825957,251.0,0.00011921,2]
[338341237,1726521826063,500.0,0.00011921,2]
[338341238,1726521826383,500.0,0.00011921,2]
[338341239,1726521826700,500.0,0.00011921,2]
[338341240,1726521827051,500.0,0.00011921,2]
[338341241,1726521827376,500.0,0.00011921,2]
[338341242,1726521827686,500.0,0.00011921,2]
[338341243,1726521828615,500.0,0.00011921,2]
[338341244,1726521828952,500.0,0.00011921,2]
[338341245,1726521829260,500.0,0.00011921,2]
[338341246,1726521829671,500.0,0.00011921,2]
[338341247,1726521829999,500.0,0.00011921,2]
[338341248,1726521830319,500.0,0.00011921,2]
[338341249,1726521830672,500.0,0.00011921,2]
[338341250,1726521831003,500.0,0.00011921,2]
[338341251,1726521831346,500.0,0.00011921,2]
[338341252,1726521832235,500.0,0.00011921,2]
[338341253,1726521832566,500.0,0.00011921,2]
[338341254,1726521832878,500.0,0.00011921,2]
[338341255,1726521833260,500.0,0.00011921,2]
[338341256,1726521833688,500.0,0.00011921,2]
[338341257,1726521833893,500.0,0.00011921,2]
[338341258,1726521834767,500.0,0.00011921,2]
[338341259,1726521835084,500.0,0.00011921,2]
[338341260,1726521835692,500.0,0.00011921,2]
[338341261,1726521835820,500.0,0.00011921,2]
[338341262,1726521836155,500.0,0.00011921,2]
[338341263,1726521836474,500.0,0.00011921,2]
[338341264,1726521836794,500.0,0.00011921,2]
[338341265,1726521837110,500.0,0.00011921,2]
[338341266,1726521837480,500.0,0.00011921,2]
[338341267,1726521837821,500.0,0.00011921,2]
[338341268,1726521838143,500.0,0.00011921,2]
[338341269,1726521838465,500.0,0.00011921,2]
[338341270,1726521838824,500.0,0.00011921,2]
[338341271,1726521839147,500.0,0.00011921,2]
[338341272,1726521839468,500.0,0.00011921,2]
[338341273,1726521839791,500.0,0.00011921,2]
[338341274,1726521840107,500.0,0.00011921,2]
[338341275,1726521840446,500.0,0.00011921,2]
[338341276,1726521840764,500.0,0.00011921,2]
[338341277,1726521841145,500.0,0.00011921,2]
[338341278,1726521842072,500.0,0.00011921,2]
[338341279,1726521842416,500.0,0.00011921,2]
[338341280,1726521842769,500.0,0.00011921,2]
[338341281,1726521843165,500.0,0.00011921,2]
[338341282,1726521843494,500.0,0.00011921,2]
[338341283,1726521843903,500.0,0.00011921,2]
[338341284,1726521844180,500.0,0.00011921,2]
[338341285,1726521844499,500.0,0.00011921,2]
[338341286,1726521844826,500.0,0.00011921,2]
[338341287,1726521845143,500.0,0.00011921,2]
[338341288,1726521845465,500.0,0.00011921,2]
[338341289,1726521845807,500.0,0.00011921,2]
[338341290,1726521846125,500.0,0.00011921,2]
[338341291,1726521846465,500.0,0.00011921,2]
[338341292,1726521846791,500.0,0.00011921,2]
[338341293,1726521847094,500.0,0.00011921,2]
[338341294,1726521847422,500.0,0.00011921,2]
[338341295,1726521847793,500.0,0.00011921,2]
[338341296,1726521848115,500.0,0.00011921,2]
[338341297,1726521848467,500.0,0.00011921,2]
[338341298,1726521848822,500.0,0.00011921,2]
[338341299,1726521849154,500.0,0.00011921,2]
[338341300,1726521849493,500.0,0.00011921,2]
[338341301,1726521849831,500.0,0.00011921,2]
[338341302,1726521850173,500.0,0.00011921,2]
[338341303,1726521850490,500.0,0.00011921,2]
[338341304,1726521850518,168.81,0.00011889,2]
[338341305,1726521850802,500.0,0.00011921,2]
[338341306,1726521851128,500.0,0.00011921,2]
[338341307,1726521851464,500.0,0.00011921,2]
[338341308,1726521851772,500.0,0.00011921,2]
[338341309,1726521852115,500.0,0.00011921,2]
[338341310,1726521852588,500.0,0.00011921,2]
[338341311,1726521852768,1382.863884,0.00012,2]
[338341312,1726521852901,500.0,0.00011921,2]
[338341313,1726521853224,523.0,0.00011921,2]
[338341314,1726521854170,500.0,8.972e-05,2]
[338341315,1726521855720,500.0,0.00011712,2]
[338341316,1726521858862,421.34449989,0.00012609,2]
[338341317,1726521859779,1050.0,0.00011,2]
[338341318,1726521865033,1400.0,8.972e-05,2]
[338341319,1726521867485,1400.0,0.00010342,2]
[338341320,1726521868083,1000.0,0.00010068,2]
[338341321,1726521869100,1400.0,0.00011712,2]
[338341322,1726521870099,1000.0,0.00011438,2]
[338341323,1726521898757,170.92,9.562e-05,2]
[338341324,1726521929664,-1799.22523805,0.0001269,2]
[338341325,1726521955073,442.6668699,6.94e-05,2]
[338341326,1726521960445,-1434.38931364,0.00012699,2]
[338341327,1726521960468,-150.0,0.00012699,2]
[338341328,1726521961828,300.0,0.00012699,2]
[338341329,1726521972651,943.2558,0.000126,2]
[338341330,1726521999919,250.0,0.00011967,2]
[338341331,1726522030097,195.0,0.00011933,2]
[338341334,1726522042916,200.0,0.000125,4]
[338341335,1726522045027,500.0,0.000126,4]
[338341336,1726522046684,371.78,0.00010009,2]
[338341337,1726522046907,371.78,0.00012272,2]
[338341338,1726522080246,5705.01647905,0.00012,2]
[338341339,1726522090876,840.0,0.00011886,2]
[338341340,1726522112993,57846.20167096,0.00026,60]
[338341341,1726522160415,500.0,0.00011933,2]
[338341342,1726522161318,500.0,0.00011933,2]
[338341343,1726522161660,500.0,0.00011933,2]
[338341344,1726522161962,500.0,0.00011933,2]
[338341345,1726522162448,668.0,0.00011933,2]
[338341346,1726522162689,500.0,0.00011933,2]
[338341347,1726522163063,500.0,0.00011933,2]
[338341348,1726522163386,500.0,0.00011933,2]
[338341349,1726522163698,500.0,0.00011933,2]
[338341350,1726522164612,666.0,0.00011933,2]
[338341351,1726522171824,-150.0,0.00012647,2]
[338341353,1726522171850,-150.0,0.00012685,2]
[338341355,1726522171877,-150.0,0.00012695,2]
[338341357,1726522171903,-150.0,0.00012699,2]
[338341358,1726522171928,-500.0,0.000127,2]
[338341360,1726522171953,-3517.82220684,0.000127,2]
[338341361,1726522171991,-708.9469806,0.000127,2]
[338341362,1726522172020,-4617.82220684,0.000127,2]
[338341365,1726522196751,-4816.71403472,0.000127,2]
[338341368,1726522196820,-3676.94362113,0.000127,2]
[338341370,1726522196849,214.2,0.00011936,2]
[338341371,1726522197033,214.2,0.0001194,2]
[338341372,1726522197292,214.2,0.00011943,2]
[338341373,1726522197711,214.2,0.00011946,2]
[338341374,1726522197956,214.2,0.00011949,2]
[338341375,1726522198190,214.2,0.00011952,2]
[338341376,1726522198516,214.2,0.00011955,2]
[338341377,1726522198717,214.2,0.00011958,2]
[338341378,1726522198922,214.2,0.00011962,2]
[338341379,1726522199345,214.2,0.00011965,2]
[338341380,1726522199594,214.2,0.00011968,2]
[338341381,1726522199810,214.2,0.00011971,2]
[338341382,1726522200038,214.2,0.00011974,2]
[338341383,1726522200265,214.2,0.00011977,2]
[338341384,1726522200465,214.2,0.0001198,2]
[338341385,1726522200730,214.2,0.00011984,2]
[338341386,1726522200937,214.2,0.00011987,2]
[338341387,1726522201154,214.2,0.0001199,2]
[338341388,1726522201607,214.2,0.00011993,2]
[338341389,1726522201846,214.2,0.00011996,2]
[338341390,1726522215264,161.14,0.00010959,2]
[338341391,1726522216839,223.6,0.00011936,2]
[338341403,1726522231885,-174.74,0.0001269,2]
[338341404,1726522231894,-174.74,0.0001269,2]
[338341406,1726522231903,-174.74,0.0001269,2]
[338341407,1726522231912,-17414.77365401,0.000127,2]
[338341408,1726522231946,-460.43123519,0.000127,2]
[338341409,1726522232008,-64786.54606067,0.000127,2]
[338341410,1726522232017,-1118.4846,0.000127,2]
[338341411,1726522232027,-150.0,0.000127,2]
[338341412,1726522232036,-2762.68221168,0.000127,2]
[338341413,1726522232045,-1554.5756,0.000127,2]
[338341414,1726522232054,-800.0,0.000127,4]
[338341415,1726522232063,-431.0,0.000127,2]
[338341416,1726522232071,-1872.6116,0.000127,2]
[338341417,1726522232080,-300.0,0.00012742,2]
[338341418,1726522232089,-150.0,0.00012748,2]
[338341419,1726522232102,-150.0,0.00012754,2]
[338341420,1726522232110,-276.86461,0.0001277,2]
[338341421,1726522232119,-150.0,0.00012771,2]
[338341422,1726522232128,-150.0,0.00012782,2]
[338341423,1726522232138,-150.0,0.00012785,2]
[338341424,1726522232148,-552.5,0.00012785,2]
[338341425,1726522232157,-500.0,0.00012797,2]
[338341426,1726522232167,-11584.95070384,0.000128,2]
[338341427,1726522232179,-1525.1233529,0.000128,2]
[338341428,1726522232194,-2844.58904,0.000128,2]
[338341431,1726522237106,250.0,0.00012165,2]
[338341436,1726522238007,-2854.41300001,0.000128,2]
[338341437,1726522238124,-267.7675,0.000128,2]
[338341438,1726522239926,-44442.74740325,0.000128,2]
[338341439,1726522239935,-2035.2267,0.000128,2]
[338341440,1726522239944,-23581.44229871,0.000128,2]
[338341441,1726522239956,-2439.14814662,0.000128,2]
[338341442,1726522239966,-5227.0184741,0.000128,2]
[338341443,1726522240023,-1298.8010804,0.000128,2]
[338341444,1726522240034,-801.65624775,0.000128,2]
[338341445,1726522240045,-2396.58360006,0.000128,2]
[338341446,1726522240056,-70.23835236,0.000128,2]
[338341447,1726522240065,-404.38266264,0.000128,4]
[338341448,1726522240076,-695.61733736,0.000128,4]
[338341449,1726522240085,-197.41791363,0.000128,2]
[338341450,1726522240094,-1000.0,0.00012808,2]
[338341451,1726522240106,-150.0,0.00012809,2]
[338341452,1726522240115,-150.0,0.00012818,2]
[338341453,1726522240123,-150.0,0.00012869,2]
[338341454,1726522240132,-150.0,0.00012895,2]
[338341455,1726522240142,-156.4211794,0.00012899,2]
[338341456,1726522240151,-5976.1879,0.000129,2]
[338341457,1726522240159,-30521.85276713,0.000129,2]
[338341458,1726522240170,-503.33,0.000129,2]
[338341459,1726522240181,-429.15446819,0.000129,2]
[338341460,1726522240192,-329145.66276468,0.000129,2]
[338341461,1726522240201,-151.0,0.000129,2]
[338341462,1726522240210,-274.938951,0.000129,2]
[338341463,1726522240219,-274.938951,0.000129,2]
[338341464,1726522240228,-168.298915,0.000129,2]
[338341465,1726522240236,-168.298915,0.000129,2]
[338341466,1726522240245,-1400.0,0.000129,4]
[338341467,1726522240254,-7500.0,0.000129,2]
[338341468,1726522240263,-150.0,0.00012908,2]
[338341469,1726522240272,-150.0,0.00012919,2]
[338341470,1726522240281,-425.0,0.00012972,2]
[338341471,1726522240290,-500.0,0.00012973,2]
[338341472,1726522240299,-500.0,0.00012973,2]
[338341473,1726522240308,-11343.20569048,0.00013,2]
[338341474,1726522240317,-2990034.6771305,0.00013,2]
[338341475,1726522240328,-134311.57088101,0.00013,2]
[338341476,1726522240338,-552.33090042,0.00013,2]
[338341477,1726522240350,-146186.01714745,0.00013,2]
[338341478,1726522240359,-151.0,0.00013,2]
[338341480,1726522240368,-274.938951,0.00013,2]
[338341482,1726522240377,-274.938951,0.00013,2]
[338341483,1726522240386,-168.298915,0.00013,2]
[338341484,1726522240395,-168.298915,0.00013,2]
[338341485,1726522240403,-635.37935566,0.00013,2]
[338341486,1726522240412,-10068.68060702,0.00013,2]
[338341487,1726522240421,-186.2130098,0.00013044,2]
[338341488,1726522240430,-226.8341262,0.00013053,2]
[338341489,1726522240439,-1400.0,0.00013082,2]
[338341490,1726522240448,-157.28,0.00013089,2]
[338341491,1726522240457,-197.41791357,0.000131,2]
[338341492,1726522240466,-2762.68221162,0.00013189,2]
[338341493,1726522240475,-1000.0,0.000132,2]
[338341494,1726522240484,-215.47,0.00013272,2]
[338341495,1726522240492,-276.86462,0.0001331,2]
[338341496,1726522240501,-840.0,0.00013372,2]
[338341497,1726522240510,-197.41791357,0.000134,2]
[338341498,1726522240519,-718.0,0.000134,2]
[338341499,1726522240528,-200.0,0.00013424,2]
[338341500,1726522240537,-195.0,0.00013424,2]
[338341501,1726522240546,-2762.68221162,0.00013433,2]
[338341502,1726522240554,-186.22,0.00013524,2]
[338341503,1726522240563,-2762.68221162,0.00013678,2]
[338341504,1726522240572,-162.48,0.00013699,2]
[338341505,1726522240581,-197.41791357,0.000137,2]
[338341506,1726522240590,-151.0,0.000138,2]
[338341507,1726522240600,-151.218999,0.000138,2]
[338341508,1726522240609,-151.0,0.000138,2]
[338341509,1726522240618,-274.938951,0.000138,2]
[338341510,1726522240626,-274.938951,0.000138,2]
[338341511,1726522240635,-151.0,0.000138,2]
[338341512,1726522240644,-151.0,0.000138,2]
[338341513,1726522240653,-151.0,0.000138,2]
[338341514,1726522240662,-151.0,0.000138,2]
[338341515,1726522240671,-151.0,0.000138,2]
[338341516,1726522240680,-151.0,0.000138,2]
[338341517,1726522240688,-151.0,0.000138,2]
[338341518,1726522240697,-321.327683,0.000138,2]
[338341519,1726522240706,-321.327683,0.000138,2]
[338341520,1726522240715,-151.0,0.000138,2]
[338341521,1726522240724,-151.0,0.000138,2]
[338341522,1726522240733,-151.0,0.000138,2]
[338341523,1726522240742,-151.0,0.000138,2]
[338341524,1726522240752,-151.0,0.000138,2]
[338341525,1726522240761,-151.0,0.000138,2]
[338341526,1726522240770,-151.0,0.000138,2]
[338341527,1726522240780,-151.0,0.000138,2]
[338341528,1726522240789,-151.0,0.000138,2]
[338341529,1726522240798,-151.0,0.000138,2]
[338341530,1726522240807,-151.0,0.000138,2]
[338341531,1726522240816,-151.0,0.000138,2]
[338341532,1726522240825,-151.0,0.000138,2]
[338341533,1726522241003,-151.0,0.000138,2]
[338341534,1726522241017,-151.0,0.000138,2]
[338341535,1726522241026,-230.508521,0.000138,2]
[338341536,1726522241035,-151.0,0.000138,2]
[338341537,1726522241044,-15034.1313091,0.000138,3]
[338341544,1726522242900,-3529.11975385,0.000138,3]
[338341545,1726522242912,-3397.76989014,0.000138,3]
[338341546,1726522242923,-1269.05719409,0.000138,3]
[338341547,1726522242934,-18847.96200157,0.000138,3]
[338341548,1726522242945,-3011.29539032,0.000138,3]
[338341549,1726522242969,-4045.835814,0.000138,3]
[338341550,1726522242980,-9245.25,0.000138,3]
[338341551,1726522242991,-3000.0206322,0.000138,3]
[338341552,1726522243002,-36597.54571064,0.000138,3]
[338341553,1726522243013,-500.0,0.000138,3]
[338341554,1726522243024,-7654.86113804,0.000138,3]
[338341555,1726522243035,-172006.29629305,0.000138,3]
[338341556,1726522243044,-151.0,0.000138,2]
[338341557,1726522243053,-157.461217,0.000138,2]
[338341558,1726522243062,-300.0,0.00013802,2]
[338341559,1726522243071,-300.0,0.00013812,2]
[338341560,1726522243080,-427.4,0.00013812,2]
[338341561,1726522243089,-427.94,0.00013812,2]
[338341562,1726522243100,-300.0,0.00013812,2]
[338341563,1726522243109,-326.79,0.00013812,2]
[338341564,1726522243118,-300.0,0.00013812,2]
[338341565,1726522243127,-427.94,0.00013812,2]
[338341566,1726522243136,-290.271,0.00013872,2]
[338341567,1726522243145,-151.0,0.000139,2]
[338341568,1726522243155,-151.0,0.000139,2]
[338341569,1726522243164,-274.938951,0.000139,2]
[338341570,1726522243174,-274.938951,0.000139,2]
[338341571,1726522243184,-168.298915,0.000139,2]
[338341572,1726522243193,-130.16017483,0.000139,2]
[338341587,1726522243767,-38.13874017,0.000139,2]
[338341588,1726522243777,-151.0,0.000139,2]
[338341589,1726522243786,-151.0,0.000139,2]